[Event "Titled Tuesday Blitz June 6 Late 2023"]
[White "Shohat, Yotam"]
[Black "Licznerski, Lukasz"]
[WhiteFideId "2813955"]
[BlackFideId "1179250"]
[WhiteElo "2226"]
[BlackElo "2453"]
[Result "1-0"]
[Round "2"]
[TimeControl "180+2"]
[Date "2023.06.07"]
[WhiteClock "0:00:06"]
[BlackClock "0:00:09"]
[Board "29"]

1. e4 {[%clk 0:03:00]}  c6 {[%clk 0:02:12]} 2. d4 {[%clk 0:03:00]}  d5 {[%clk 0:02:13]} 3. e5 {[%clk 0:02:57]}  Bf5 {[%clk 0:02:12]} 4. Nd2 {[%clk 0:02:56]}  e6 {[%clk 0:02:12]} 5. Nb3 {[%clk 0:02:57]}  c5 {[%clk 0:02:12]} 6. c3 {[%clk 0:02:57]}  c4 {[%clk 0:02:05]} 7. Nd2 {[%clk 0:02:57]}  Nc6 {[%clk 0:01:59]} 8. Ngf3 {[%clk 0:02:58]}  h6 {[%clk 0:01:55]} 9. Be2 {[%clk 0:02:57]}  Nge7 {[%clk 0:01:49]} 10. Nf1 {[%clk 0:02:57]}  Bh7 {[%clk 0:01:48]} 11. Ne3 {[%clk 0:02:53]}  Nf5 {[%clk 0:01:47]} 12. O-O {[%clk 0:02:46]}  Be7 {[%clk 0:01:46]} 13. Nxf5 {[%clk 0:02:42]}  Bxf5 {[%clk 0:01:47]} 14. Ne1 {[%clk 0:02:39]}  O-O {[%clk 0:01:45]} 15. g4 {[%clk 0:02:38]}  Bh7 {[%clk 0:01:45]} 16. f4 {[%clk 0:02:35]}  f5 {[%clk 0:01:27]} 17. Kh1 {[%clk 0:02:29]}  fxg4 {[%clk 0:01:24]} 18. Bxg4 {[%clk 0:02:29]}  Be4+ {[%clk 0:01:24]} 19. Kg1 {[%clk 0:02:25]}  Bf5 {[%clk 0:01:22]} 20. Ng2 {[%clk 0:02:23]}  Qe8 {[%clk 0:01:14]} 21. Bxf5 {[%clk 0:02:17]}  Rxf5 {[%clk 0:01:11]} 22. Ne3 {[%clk 0:02:16]}  Qg6+ {[%clk 0:01:10]} 23. Kh1 {[%clk 0:02:17]}  Rf7 {[%clk 0:00:56]} 24. f5 {[%clk 0:02:15]}  Qh7 {[%clk 0:00:39]} 25. Qg4 {[%clk 0:02:10]}  Raf8 {[%clk 0:00:35]} 26. f6 {[%clk 0:02:09]}  Bd8 {[%clk 0:00:23]} 27. Qxe6 {[%clk 0:01:38]}  Qe4+ {[%clk 0:00:23]} 28. Kg1 {[%clk 0:01:37]}  gxf6 {[%clk 0:00:23]} 29. Qxd5 {[%clk 0:01:25]}  Qxd5 {[%clk 0:00:18]} 30. Nxd5 {[%clk 0:01:26]}  fxe5 {[%clk 0:00:19]} 31. Bxh6 {[%clk 0:01:25]}  Rxf1+ {[%clk 0:00:16]} 32. Rxf1 {[%clk 0:01:26]}  Rxf1+ {[%clk 0:00:17]} 33. Kxf1 {[%clk 0:01:27]}  exd4 {[%clk 0:00:17]} 34. cxd4 {[%clk 0:01:22]}  Nxd4 {[%clk 0:00:18]} 35. Be3 {[%clk 0:01:22]}  Nc6 {[%clk 0:00:15]} 36. Ke2 {[%clk 0:01:14]}  Kf7 {[%clk 0:00:15]} 37. Kf3 {[%clk 0:01:14]}  Ke6 {[%clk 0:00:15]} 38. Ke4 {[%clk 0:01:14]}  b5 {[%clk 0:00:11]} 39. Bf4 {[%clk 0:01:08]}  a5 {[%clk 0:00:06]} 40. Bc7 {[%clk 0:01:04]}  Bh4 {[%clk 0:00:02]} 41. Bf4 {[%clk 0:00:35]}  Bd8 {[%clk 0:00:02]} 42. Bc7 {[%clk 0:00:33]}  Bh4 {[%clk 0:00:02]} 43. Bg3 {[%clk 0:00:34]}  Bd8 {[%clk 0:00:02]} 44. h4 {[%clk 0:00:30]}  Nb4 {[%clk 0:00:02]} 45. Nc7+ {[%clk 0:00:18]}  Kd7 {[%clk 0:00:01]} 46. Nxb5 {[%clk 0:00:18]}  Nxa2 {[%clk 0:00:02]} 47. h5 {[%clk 0:00:17]}  Bf6 {[%clk 0:00:02]} 48. Be5 {[%clk 0:00:17]}  Bg5 {[%clk 0:00:01]} 49. Bf4 {[%clk 0:00:17]}  Bf6 {[%clk 0:00:01]} 50. h6 {[%clk 0:00:17]}  Bxb2 {[%clk 0:00:01]} 51. Be5 {[%clk 0:00:16]}  Bxe5 {[%clk 0:00:02]} 52. Kxe5 {[%clk 0:00:17]}  c3 {[%clk 0:00:02]} 53. Na3 {[%clk 0:00:11]}  Nb4 {[%clk 0:00:02]} 54. h7 {[%clk 0:00:11]}  Nc6+ {[%clk 0:00:02]} 55. Kf4 {[%clk 0:00:09]}  c2 {[%clk 0:00:03]} 56. Nxc2 {[%clk 0:00:06]}  Nd8 {[%clk 0:00:04]} 57. h8=Q {[%clk 0:00:05]}  Ne6+ {[%clk 0:00:05]} 58. Ke3 {[%clk 0:00:05]}  Nc7 {[%clk 0:00:06]} 59. Qb8 {[%clk 0:00:05]}  Kc6 {[%clk 0:00:07]} 60. Kd4 {[%clk 0:00:05]}  Nd5 {[%clk 0:00:08]} 61. Qa8+ {[%clk 0:00:05]}  Kb6 {[%clk 0:00:08]} 62. Qxd5 {[%clk 0:00:06]}  a4 {[%clk 0:00:09]} 63. Qa2 {[%clk 0:00:06]}  Ka5 {[%clk 0:00:09]} 64. Kc5 {[%clk 0:00:07]}  Ka6 {[%clk 0:00:10]} 65. Qb2 {[%clk 0:00:07]}  a3 {[%clk 0:00:09]} 66. Qb6# {[%clk 0:00:06]} 1-0


[Site "https://www.chess.com"]

[Event "Titled Tuesday Blitz June 6 Late 2023"]
[White "Roberson, Peter T"]
[Black "Keymer, Vincent"]
[WhiteFideId "412384"]
[BlackFideId "12940690"]
[WhiteElo "2346"]
[BlackElo "2669"]
[Result "0-1"]
[Round "2"]
[TimeControl "180+2"]
[Date "2023.06.07"]
[WhiteClock "0:00:03"]
[BlackClock "0:00:11"]
[Board "35"]

1. e4 {[%clk 0:03:00]}  c6 {[%clk 0:02:57]} 2. c3 {[%clk 0:03:00]}  d5 {[%clk 0:02:57]} 3. e5 {[%clk 0:03:01]}  Bf5 {[%clk 0:02:56]} 4. Nf3 {[%clk 0:03:01]}  e6 {[%clk 0:02:56]} 5. Be2 {[%clk 0:03:01]}  Nd7 {[%clk 0:02:47]} 6. O-O {[%clk 0:03:00]}  f6 {[%clk 0:02:41]} 7. d4 {[%clk 0:03:00]}  fxe5 {[%clk 0:02:39]} 8. dxe5 {[%clk 0:02:58]}  Ne7 {[%clk 0:02:39]} 9. Re1 {[%clk 0:02:54]}  Qc7 {[%clk 0:02:35]} 10. Bd3 {[%clk 0:02:53]}  Bg4 {[%clk 0:02:26]} 11. Bf4 {[%clk 0:02:51]}  O-O-O {[%clk 0:02:13]} 12. Nbd2 {[%clk 0:02:50]}  Ng6 {[%clk 0:02:12]} 13. Bg3 {[%clk 0:02:50]}  Bc5 {[%clk 0:02:08]} 14. Qc2 {[%clk 0:02:47]}  Rdf8 {[%clk 0:02:06]} 15. Nd4 {[%clk 0:02:24]}  Bxd4 {[%clk 0:02:01]} 16. cxd4 {[%clk 0:02:24]}  Bf5 {[%clk 0:02:01]} 17. b4 {[%clk 0:02:16]}  Kb8 {[%clk 0:01:53]} 18. Nb3 {[%clk 0:02:13]}  h5 {[%clk 0:01:30]} 19. h3 {[%clk 0:02:03]}  Ne7 {[%clk 0:01:27]} 20. a4 {[%clk 0:02:00]}  g5 {[%clk 0:01:22]} 21. Rec1 {[%clk 0:01:42]}  Rhg8 {[%clk 0:01:15]} 22. b5 {[%clk 0:01:41]}  h4 {[%clk 0:01:15]} 23. Bh2 {[%clk 0:01:41]}  g4 {[%clk 0:01:15]} 24. hxg4 {[%clk 0:01:40]}  Bxg4 {[%clk 0:01:13]} 25. a5 {[%clk 0:01:20]}  Bf3 {[%clk 0:01:07]} 26. Bf1 {[%clk 0:01:10]}  Bxg2 {[%clk 0:00:38]} 27. Bxg2 {[%clk 0:01:11]}  h3 {[%clk 0:00:38]} 28. Bg3 {[%clk 0:01:11]}  hxg2 {[%clk 0:00:38]} 29. a6 {[%clk 0:01:12]}  Nf5 {[%clk 0:00:22]} 30. axb7 {[%clk 0:01:12]}  c5 {[%clk 0:00:17]} 31. Na5 {[%clk 0:01:01]}  Nxd4 {[%clk 0:00:13]} 32. Qd3 {[%clk 0:00:50]}  Nxe5 {[%clk 0:00:09]} 33. Qxd4 {[%clk 0:00:10]}  Nf3+ {[%clk 0:00:09]} 34. Kxg2 {[%clk 0:00:11]}  Nxd4 {[%clk 0:00:09]} 35. Nc6+ {[%clk 0:00:02]}  Nxc6 {[%clk 0:00:09]} 36. bxc6 {[%clk 0:00:02]}  Rxg3+ {[%clk 0:00:10]} 37. fxg3 {[%clk 0:00:03]}  Qxc6 {[%clk 0:00:11]} 0-1


[Site "https://www.chess.com"]

[Event "Titled Tuesday Blitz June 6 Late 2023"]
[White "Visakh N R"]
[Black "Becerra, Juan David"]
[WhiteFideId "25012223"]
[BlackFideId "4404998"]
[WhiteElo "2466"]
[BlackElo "2304"]
[Result "1/2-1/2"]
[Round "2"]
[TimeControl "180+2"]
[Date "2023.06.07"]
[WhiteClock "0:01:26"]
[BlackClock "0:00:09"]
[Board "37"]

1. e4 {[%clk 0:03:00]}  e5 {[%clk 0:02:55]} 2. Nf3 {[%clk 0:03:00]}  Nc6 {[%clk 0:02:55]} 3. d4 {[%clk 0:02:58]}  exd4 {[%clk 0:02:55]} 4. Nxd4 {[%clk 0:02:59]}  Bb4+ {[%clk 0:02:55]} 5. c3 {[%clk 0:02:40]}  Bc5 {[%clk 0:02:55]} 6. Be3 {[%clk 0:02:36]}  Bb6 {[%clk 0:02:55]} 7. Na3 {[%clk 0:02:34]}  Nf6 {[%clk 0:02:55]} 8. Nxc6 {[%clk 0:02:33]}  bxc6 {[%clk 0:02:53]} 9. Bxb6 {[%clk 0:02:33]}  axb6 {[%clk 0:02:50]} 10. Bd3 {[%clk 0:02:33]}  O-O {[%clk 0:02:49]} 11. e5 {[%clk 0:02:30]}  Re8 {[%clk 0:02:48]} 12. f4 {[%clk 0:02:30]}  d6 {[%clk 0:02:49]} 13. O-O {[%clk 0:02:30]}  Ng4 {[%clk 0:02:40]} 14. e6 {[%clk 0:02:21]}  Qh4 {[%clk 0:01:53]} 15. h3 {[%clk 0:02:10]}  Ne3 {[%clk 0:01:52]} 16. exf7+ {[%clk 0:02:05]}  Kxf7 {[%clk 0:01:53]} 17. Qe1 {[%clk 0:02:04]}  Nxg2 {[%clk 0:01:35]} 18. Qxh4 {[%clk 0:01:46]}  Nxh4 {[%clk 0:01:36]} 19. f5 {[%clk 0:01:45]}  Kf6 {[%clk 0:01:28]} 20. Rf4 {[%clk 0:01:43]}  Nxf5 {[%clk 0:01:27]} 21. Raf1 {[%clk 0:01:43]}  g6 {[%clk 0:01:27]} 22. h4 {[%clk 0:01:39]}  h5 {[%clk 0:01:25]} 23. Bb1 {[%clk 0:01:36]}  Be6 {[%clk 0:01:18]} 24. Nc2 {[%clk 0:01:33]}  Bxa2 {[%clk 0:01:12]} 25. Bxa2 {[%clk 0:01:33]}  Rxa2 {[%clk 0:01:11]} 26. Nd4 {[%clk 0:01:34]}  Re5 {[%clk 0:01:05]} 27. Nxc6 {[%clk 0:01:34]}  Rc5 {[%clk 0:01:05]} 28. Nb4 {[%clk 0:01:34]}  Ra8 {[%clk 0:00:36]} 29. Nd3 {[%clk 0:01:34]}  Rd5 {[%clk 0:00:35]} 30. Nf2 {[%clk 0:01:34]}  Re8 {[%clk 0:00:29]} 31. Ne4+ {[%clk 0:01:33]}  Kg7 {[%clk 0:00:29]} 32. Ng5 {[%clk 0:01:32]}  Rd2 {[%clk 0:00:27]} 33. R1f2 {[%clk 0:01:31]}  Ree2 {[%clk 0:00:27]} 34. Ne6+ {[%clk 0:01:26]}  Kf6 {[%clk 0:00:23]} 35. Nxc7 {[%clk 0:01:25]}  Rxf2 {[%clk 0:00:23]} 36. Rxf2 {[%clk 0:01:26]}  Rxf2 {[%clk 0:00:23]} 37. Kxf2 {[%clk 0:01:27]}  Nxh4 {[%clk 0:00:20]} 38. Nd5+ {[%clk 0:01:27]}  Ke5 {[%clk 0:00:20]} 39. Nxb6 {[%clk 0:01:28]}  Nf5 {[%clk 0:00:21]} 40. b4 {[%clk 0:01:28]}  g5 {[%clk 0:00:20]} 41. b5 {[%clk 0:01:28]}  g4 {[%clk 0:00:20]} 42. Nd7+ {[%clk 0:01:26]}  Kd5 {[%clk 0:00:19]} 43. Nf6+ {[%clk 0:01:25]}  Kc5 {[%clk 0:00:19]} 44. Nxh5 {[%clk 0:01:26]}  Kxb5 {[%clk 0:00:19]} 45. Nf6 {[%clk 0:01:26]}  g3+ {[%clk 0:00:19]} 46. Kf3 {[%clk 0:01:26]}  Kc4 {[%clk 0:00:20]} 47. Ne4 {[%clk 0:01:26]}  d5 {[%clk 0:00:18]} 48. Nf6 {[%clk 0:01:27]}  Nd6 {[%clk 0:00:10]} 49. Nxd5 {[%clk 0:01:26]}  Kxd5 {[%clk 0:00:10]} 50. c4+ {[%clk 0:01:25]}  Nxc4 {[%clk 0:00:09]} 51. Kxg3 {[%clk 0:01:26]} 1/2-1/2


[Site "https://www.chess.com"]

[Event "Titled Tuesday Blitz June 6 Late 2023"]
[White "Bryakin, Mikhail"]
[Black "Poltorak, Sebastian"]
[WhiteFideId "4165314"]
[BlackFideId "1199498"]
[WhiteElo "2464"]
[BlackElo "2195"]
[Result "1-0"]
[Round "2"]
[TimeControl "180+2"]
[Date "2023.06.07"]
[WhiteClock "0:00:15"]
[BlackClock "0:00:03"]
[Board "39"]

1. e4 {[%clk 0:02:49]}  c5 {[%clk 0:02:59]} 2. Nf3 {[%clk 0:02:45]}  e6 {[%clk 0:02:59]} 3. c3 {[%clk 0:02:41]}  d5 {[%clk 0:02:58]} 4. exd5 {[%clk 0:02:39]}  exd5 {[%clk 0:02:55]} 5. Bb5+ {[%clk 0:02:38]}  Bd7 {[%clk 0:02:54]} 6. Qe2+ {[%clk 0:02:29]}  Qe7 {[%clk 0:02:36]} 7. O-O {[%clk 0:02:19]}  Qxe2 {[%clk 0:02:35]} 8. Bxe2 {[%clk 0:02:20]}  Nc6 {[%clk 0:02:30]} 9. d4 {[%clk 0:02:13]}  cxd4 {[%clk 0:02:28]} 10. Nxd4 {[%clk 0:02:13]}  Nxd4 {[%clk 0:02:25]} 11. cxd4 {[%clk 0:02:13]}  Bb4 {[%clk 0:02:16]} 12. Bd2 {[%clk 0:02:07]}  Bxd2 {[%clk 0:02:15]} 13. Nxd2 {[%clk 0:02:08]}  Nf6 {[%clk 0:02:12]} 14. Rac1 {[%clk 0:02:06]}  Rc8 {[%clk 0:02:09]} 15. Rxc8+ {[%clk 0:02:02]}  Bxc8 {[%clk 0:02:10]} 16. Rc1 {[%clk 0:02:01]}  Kd8 {[%clk 0:02:09]} 17. f3 {[%clk 0:02:01]}  Bd7 {[%clk 0:02:01]} 18. Bd3 {[%clk 0:02:01]}  Re8 {[%clk 0:01:58]} 19. Kf2 {[%clk 0:02:01]}  h6 {[%clk 0:01:46]} 20. h4 {[%clk 0:02:01]}  Re6 {[%clk 0:01:43]} 21. g4 {[%clk 0:01:52]}  Rc6 {[%clk 0:01:42]} 22. Rxc6 {[%clk 0:01:51]}  Bxc6 {[%clk 0:01:42]} 23. g5 {[%clk 0:01:45]}  hxg5 {[%clk 0:01:41]} 24. hxg5 {[%clk 0:01:46]}  Ne8 {[%clk 0:01:36]} 25. Kg3 {[%clk 0:01:43]}  Ke7 {[%clk 0:01:34]} 26. Kf4 {[%clk 0:01:42]}  Nc7 {[%clk 0:01:29]} 27. Ke3 {[%clk 0:01:37]}  f6 {[%clk 0:01:26]} 28. g6 {[%clk 0:01:29]}  Bd7 {[%clk 0:01:14]} 29. f4 {[%clk 0:01:25]}  f5 {[%clk 0:01:00]} 30. Nf3 {[%clk 0:01:26]}  Kf6 {[%clk 0:01:00]} 31. Nh4 {[%clk 0:01:13]}  Ne8 {[%clk 0:00:51]} 32. Be2 {[%clk 0:01:08]}  Nd6 {[%clk 0:00:50]} 33. Bf3 {[%clk 0:01:07]}  Be6 {[%clk 0:00:46]} 34. Bh5 {[%clk 0:01:03]}  Ne4 {[%clk 0:00:34]} 35. Bf3 {[%clk 0:00:59]}  Bd7 {[%clk 0:00:30]} 36. Bd1 {[%clk 0:00:58]}  Nd6 {[%clk 0:00:24]} 37. Bb3 {[%clk 0:00:56]}  Bc6 {[%clk 0:00:24]} 38. a3 {[%clk 0:00:52]}  Nc8 {[%clk 0:00:24]} 39. Bc2 {[%clk 0:00:47]}  Ne7 {[%clk 0:00:24]} 40. b4 {[%clk 0:00:46]}  Bd7 {[%clk 0:00:24]} 41. Nf3 {[%clk 0:00:45]}  Nxg6 {[%clk 0:00:24]} 42. Ne5 {[%clk 0:00:41]}  Nxe5 {[%clk 0:00:23]} 43. dxe5+ {[%clk 0:00:42]}  Ke6 {[%clk 0:00:24]} 44. Kd4 {[%clk 0:00:40]}  b6 {[%clk 0:00:18]} 45. Bb3 {[%clk 0:00:34]}  Bc6 {[%clk 0:00:18]} 46. a4 {[%clk 0:00:32]}  Bb7 {[%clk 0:00:16]} 47. a5 {[%clk 0:00:29]}  Bc6 {[%clk 0:00:12]} 48. Ba2 {[%clk 0:00:24]}  Bb7 {[%clk 0:00:12]} 49. Bb3 {[%clk 0:00:24]}  Bc6 {[%clk 0:00:11]} 50. Bd1 {[%clk 0:00:25]}  g6 {[%clk 0:00:08]} 51. Be2 {[%clk 0:00:25]}  bxa5 {[%clk 0:00:06]} 52. bxa5 {[%clk 0:00:25]}  Ba4 {[%clk 0:00:05]} 53. Ba6 {[%clk 0:00:25]}  Bc6 {[%clk 0:00:04]} 54. Bc8+ {[%clk 0:00:25]}  Ke7 {[%clk 0:00:04]} 55. Kc5 {[%clk 0:00:24]}  Ba8 {[%clk 0:00:04]} 56. a6 {[%clk 0:00:16]}  Kd8 {[%clk 0:00:02]} 57. Bb7 {[%clk 0:00:14]}  Bxb7 {[%clk 0:00:02]} 58. axb7 {[%clk 0:00:14]}  Kc7 {[%clk 0:00:03]} 59. e6 {[%clk 0:00:15]} 1-0


[Site "https://www.chess.com"]

[Event "Titled Tuesday Blitz June 6 Late 2023"]
[White "Hajiyev, Kanan"]
[Black "Tejedor Fuente, Enrique"]
[WhiteFideId "13404148"]
[BlackFideId "2299100"]
[WhiteElo "2115"]
[BlackElo "2496"]
[Result "0-1"]
[Round "2"]
[TimeControl "180+2"]
[Date "2023.06.07"]
[WhiteClock "0:00:03"]
[BlackClock "0:00:14"]
[Board "45"]

1. d4 {[%clk 0:02:52]}  d5 {[%clk 0:02:59]} 2. Nf3 {[%clk 0:02:51]}  a6 {[%clk 0:02:57]} 3. c4 {[%clk 0:02:51]}  e6 {[%clk 0:02:56]} 4. cxd5 {[%clk 0:02:52]}  exd5 {[%clk 0:02:56]} 5. Nc3 {[%clk 0:02:53]}  h6 {[%clk 0:02:55]} 6. Bf4 {[%clk 0:02:51]}  c6 {[%clk 0:02:55]} 7. e3 {[%clk 0:02:51]}  Bd6 {[%clk 0:02:50]} 8. Ne5 {[%clk 0:02:47]}  Ne7 {[%clk 0:02:48]} 9. Bd3 {[%clk 0:02:44]}  Be6 {[%clk 0:02:43]} 10. O-O {[%clk 0:02:43]}  Qc7 {[%clk 0:02:19]} 11. Qc2 {[%clk 0:02:37]}  Nd7 {[%clk 0:02:17]} 12. Nxd7 {[%clk 0:02:26]}  Bxf4 {[%clk 0:02:12]} 13. exf4 {[%clk 0:02:27]}  Qxd7 {[%clk 0:02:10]} 14. Rfe1 {[%clk 0:02:25]}  O-O {[%clk 0:02:08]} 15. Na4 {[%clk 0:01:59]}  Qd8 {[%clk 0:01:51]} 16. f5 {[%clk 0:01:55]}  Bd7 {[%clk 0:01:48]} 17. Nc5 {[%clk 0:01:45]}  Bc8 {[%clk 0:01:43]} 18. Re3 {[%clk 0:01:37]}  f6 {[%clk 0:01:24]} 19. Rae1 {[%clk 0:01:34]}  Rf7 {[%clk 0:01:24]} 20. Ne6 {[%clk 0:01:04]}  Qd6 {[%clk 0:01:11]} 21. Rg3 {[%clk 0:00:42]}  Bd7 {[%clk 0:01:04]} 22. Qd2 {[%clk 0:00:42]}  Kh7 {[%clk 0:01:04]} 23. a3 {[%clk 0:00:36]}  Re8 {[%clk 0:01:03]} 24. b4 {[%clk 0:00:36]}  Ng8 {[%clk 0:00:56]} 25. Qe2 {[%clk 0:00:26]}  Kh8 {[%clk 0:00:50]} 26. Qg4 {[%clk 0:00:25]}  Ree7 {[%clk 0:00:27]} 27. Ree3 {[%clk 0:00:23]}  a5 {[%clk 0:00:25]} 28. bxa5 {[%clk 0:00:20]}  Qxa3 {[%clk 0:00:25]} 29. a6 {[%clk 0:00:13]}  bxa6 {[%clk 0:00:23]} 30. h4 {[%clk 0:00:12]}  a5 {[%clk 0:00:22]} 31. Nc5 {[%clk 0:00:07]}  Qc1+ {[%clk 0:00:19]} 32. Kh2 {[%clk 0:00:05]}  Be8 {[%clk 0:00:17]} 33. Rxe7 {[%clk 0:00:04]}  Rxe7 {[%clk 0:00:18]} 34. Ne6 {[%clk 0:00:04]}  h5 {[%clk 0:00:16]} 35. Qf3 {[%clk 0:00:03]}  Qh6 {[%clk 0:00:15]} 36. Rg6 {[%clk 0:00:02]}  Bxg6 {[%clk 0:00:15]} 37. fxg6 {[%clk 0:00:03]}  Rxe6 {[%clk 0:00:15]} 38. Bf5 {[%clk 0:00:03]}  Re7 {[%clk 0:00:15]} 39. Qa3 {[%clk 0:00:03]}  Qf4+ {[%clk 0:00:15]} 40. g3 {[%clk 0:00:03]}  Qxf2+ {[%clk 0:00:14]} 41. Kh3 {[%clk 0:00:03]}  Qxf5+ {[%clk 0:00:14]} 0-1


[Site "https://www.chess.com"]

[Event "Titled Tuesday Blitz June 6 Late 2023"]
[White "Gadimbayli, Abdulla"]
[Black "Bilan, Danila"]
[WhiteFideId "13404938"]
[BlackFideId "24161918"]
[WhiteElo "2386"]
[BlackElo "2146"]
[Result "1-0"]
[Round "2"]
[TimeControl "180+2"]
[Date "2023.06.07"]
[WhiteClock "0:00:30"]
[BlackClock "0:00:02"]
[Board "46"]

1. Nf3 {[%clk 0:02:59]}  d5 {[%clk 0:02:59]} 2. b3 {[%clk 0:02:59]}  Nf6 {[%clk 0:02:59]} 3. Bb2 {[%clk 0:02:58]}  c5 {[%clk 0:02:59]} 4. e3 {[%clk 0:02:58]}  a6 {[%clk 0:02:59]} 5. d3 {[%clk 0:02:53]}  Nc6 {[%clk 0:02:59]} 6. Nbd2 {[%clk 0:02:53]}  Bg4 {[%clk 0:02:56]} 7. h3 {[%clk 0:02:53]}  Bh5 {[%clk 0:02:56]} 8. g4 {[%clk 0:02:52]}  Bg6 {[%clk 0:02:56]} 9. Ne5 {[%clk 0:02:52]}  Nxe5 {[%clk 0:02:55]} 10. Bxe5 {[%clk 0:02:52]}  e6 {[%clk 0:02:53]} 11. Bg2 {[%clk 0:02:51]}  Bd6 {[%clk 0:02:52]} 12. Bb2 {[%clk 0:02:38]}  Qc7 {[%clk 0:02:42]} 13. f4 {[%clk 0:02:21]}  h6 {[%clk 0:02:09]} 14. Qf3 {[%clk 0:02:18]}  O-O-O {[%clk 0:01:44]} 15. O-O-O {[%clk 0:02:00]}  Rhe8 {[%clk 0:00:57]} 16. Rhf1 {[%clk 0:01:57]}  e5 {[%clk 0:00:49]} 17. f5 {[%clk 0:01:42]}  Bh7 {[%clk 0:00:49]} 18. Qe2 {[%clk 0:01:40]}  d4 {[%clk 0:00:31]} 19. Kb1 {[%clk 0:01:13]}  Bg8 {[%clk 0:00:29]} 20. Nc4 {[%clk 0:01:08]}  Bf8 {[%clk 0:00:29]} 21. Qf3 {[%clk 0:00:59]}  Nd5 {[%clk 0:00:29]} 22. exd4 {[%clk 0:00:43]}  cxd4 {[%clk 0:00:24]} 23. Qxd5 {[%clk 0:00:43]}  Rxd5 {[%clk 0:00:20]} 24. Bxd5 {[%clk 0:00:44]}  Bb4 {[%clk 0:00:18]} 25. f6 {[%clk 0:00:40]}  gxf6 {[%clk 0:00:04]} 26. Rxf6 {[%clk 0:00:41]}  Be7 {[%clk 0:00:04]} 27. Rxh6 {[%clk 0:00:34]}  Bg5 {[%clk 0:00:04]} 28. Nd6+ {[%clk 0:00:34]}  Kb8 {[%clk 0:00:03]} 29. Nxe8 {[%clk 0:00:34]}  Qd8 {[%clk 0:00:03]} 30. Rh8 {[%clk 0:00:28]}  Qxe8 {[%clk 0:00:03]} 31. Rf1 {[%clk 0:00:29]}  Kc7 {[%clk 0:00:01]} 32. Bxf7 {[%clk 0:00:29]}  Qxf7 {[%clk 0:00:01]} 33. Rxf7+ {[%clk 0:00:29]}  Bxf7 {[%clk 0:00:02]} 34. Rh7 {[%clk 0:00:30]} 1-0


[Site "https://www.chess.com"]

[Event "Titled Tuesday Blitz June 6 Late 2023"]
[White "Sokolovsky, Yahli"]
[Black "Gheorghiu, Calin"]
[WhiteFideId "2820242"]
[BlackFideId "1200305"]
[WhiteElo "2389"]
[BlackElo "2204"]
[Result "1-0"]
[Round "2"]
[TimeControl "180+2"]
[Date "2023.06.07"]
[WhiteClock "0:00:19"]
[BlackClock "0:00:04"]
[Board "51"]

1. b3 {[%clk 0:03:00]}  e5 {[%clk 0:02:55]} 2. Bb2 {[%clk 0:03:01]}  Nc6 {[%clk 0:02:54]} 3. e3 {[%clk 0:03:02]}  Nf6 {[%clk 0:02:38]} 4. Nf3 {[%clk 0:03:03]}  e4 {[%clk 0:02:36]} 5. Nd4 {[%clk 0:03:03]}  Nxd4 {[%clk 0:02:33]} 6. Bxd4 {[%clk 0:03:04]}  d5 {[%clk 0:02:32]} 7. c4 {[%clk 0:03:04]}  c5 {[%clk 0:02:27]} 8. Bxf6 {[%clk 0:03:03]}  Qxf6 {[%clk 0:02:28]} 9. Nc3 {[%clk 0:03:03]}  dxc4 {[%clk 0:02:18]} 10. Bxc4 {[%clk 0:03:04]}  Qg6 {[%clk 0:02:15]} 11. Qc2 {[%clk 0:02:59]}  Be7 {[%clk 0:02:08]} 12. Bb5+ {[%clk 0:02:58]}  Kf8 {[%clk 0:02:08]} 13. Qxe4 {[%clk 0:02:54]}  Qxe4 {[%clk 0:01:24]} 14. Nxe4 {[%clk 0:02:55]}  Bf5 {[%clk 0:01:24]} 15. Bd3 {[%clk 0:02:56]}  Rd8 {[%clk 0:01:18]} 16. Ke2 {[%clk 0:02:56]}  h5 {[%clk 0:01:12]} 17. Nxc5 {[%clk 0:02:53]}  Bg4+ {[%clk 0:01:11]} 18. f3 {[%clk 0:02:51]}  Bxc5 {[%clk 0:01:11]} 19. fxg4 {[%clk 0:02:51]}  hxg4 {[%clk 0:01:11]} 20. Bf5 {[%clk 0:02:44]}  Bd6 {[%clk 0:00:43]} 21. g3 {[%clk 0:02:44]}  Be5 {[%clk 0:00:38]} 22. Rac1 {[%clk 0:02:44]}  g6 {[%clk 0:00:38]} 23. Bxg4 {[%clk 0:02:44]}  f5 {[%clk 0:00:38]} 24. Bf3 {[%clk 0:02:44]}  b6 {[%clk 0:00:38]} 25. h3 {[%clk 0:02:20]}  Bxg3 {[%clk 0:00:37]} 26. Rcg1 {[%clk 0:02:20]}  f4 {[%clk 0:00:36]} 27. Bg4 {[%clk 0:02:03]}  Kg7 {[%clk 0:00:34]} 28. e4 {[%clk 0:01:37]}  Rd4 {[%clk 0:00:33]} 29. d3 {[%clk 0:01:34]}  Rhd8 {[%clk 0:00:33]} 30. Rd1 {[%clk 0:01:33]}  a5 {[%clk 0:00:33]} 31. Rd2 {[%clk 0:01:32]}  a4 {[%clk 0:00:33]} 32. Rc1 {[%clk 0:01:32]}  axb3 {[%clk 0:00:27]} 33. axb3 {[%clk 0:01:33]}  f3+ {[%clk 0:00:20]} 34. Ke3 {[%clk 0:01:31]}  f2 {[%clk 0:00:20]} 35. Be2 {[%clk 0:01:21]}  g5 {[%clk 0:00:17]} 36. Rdc2 {[%clk 0:01:12]}  Bf4+ {[%clk 0:00:16]} 37. Kxf2 {[%clk 0:01:13]}  Bxc1 {[%clk 0:00:16]} 38. Rxc1 {[%clk 0:01:14]}  R8d7 {[%clk 0:00:16]} 39. Ke3 {[%clk 0:01:02]}  Kf6 {[%clk 0:00:16]} 40. Rf1+ {[%clk 0:01:01]}  Kg6 {[%clk 0:00:15]} 41. Rf5 {[%clk 0:00:57]}  R4d6 {[%clk 0:00:13]} 42. Rb5 {[%clk 0:00:53]}  Rc7 {[%clk 0:00:11]} 43. Kd2 {[%clk 0:00:53]}  Rc5 {[%clk 0:00:11]} 44. Rb4 {[%clk 0:00:54]}  Rdc6 {[%clk 0:00:08]} 45. Rd4 {[%clk 0:00:52]}  Rb5 {[%clk 0:00:07]} 46. b4 {[%clk 0:00:48]}  Re5 {[%clk 0:00:08]} 47. Bg4 {[%clk 0:00:48]}  Re7 {[%clk 0:00:08]} 48. Bd7 {[%clk 0:00:48]}  Rc7 {[%clk 0:00:08]} 49. Rd6+ {[%clk 0:00:44]}  Kg7 {[%clk 0:00:08]} 50. Bf5 {[%clk 0:00:45]}  Ra7 {[%clk 0:00:07]} 51. Rxb6 {[%clk 0:00:45]}  Ra2+ {[%clk 0:00:07]} 52. Ke3 {[%clk 0:00:45]}  Rb2 {[%clk 0:00:07]} 53. b5 {[%clk 0:00:44]}  Re5 {[%clk 0:00:08]} 54. Rg6+ {[%clk 0:00:44]}  Kf7 {[%clk 0:00:08]} 55. Rxg5 {[%clk 0:00:29]}  Rexb5 {[%clk 0:00:08]} 56. h4 {[%clk 0:00:26]}  Kf6 {[%clk 0:00:08]} 57. Rg6+ {[%clk 0:00:27]}  Kf7 {[%clk 0:00:08]} 58. h5 {[%clk 0:00:26]}  Rh2 {[%clk 0:00:08]} 59. h6 {[%clk 0:00:26]}  Rb1 {[%clk 0:00:05]} 60. Ra6 {[%clk 0:00:22]}  Rbh1 {[%clk 0:00:04]} 61. h7 {[%clk 0:00:22]}  Ke7 {[%clk 0:00:05]} 62. Kf4 {[%clk 0:00:19]}  Rd1 {[%clk 0:00:04]} 63. Ra8 {[%clk 0:00:17]}  Rxd3 {[%clk 0:00:03]} 64. h8=Q {[%clk 0:00:18]}  Rxh8 {[%clk 0:00:03]} 65. Rxh8 {[%clk 0:00:18]}  Ra3 {[%clk 0:00:02]} 66. Rh7+ {[%clk 0:00:19]}  Kd6 {[%clk 0:00:03]} 67. e5+ {[%clk 0:00:18]}  Kc5 {[%clk 0:00:04]} 68. Rd7 {[%clk 0:00:18]}  Ra4+ {[%clk 0:00:03]} 69. Kg5 {[%clk 0:00:18]}  Ra5 {[%clk 0:00:04]} 70. Kf6 {[%clk 0:00:19]}  Ra6+ {[%clk 0:00:04]} 71. e6 {[%clk 0:00:19]} 1-0


[Site "https://www.chess.com"]